[Event "Mistrovství Čech mládeže 2023 - HD12"]
[Site "Harrachov, Czech Republic"]
[Date "2023.10.23"]
[Round "4.1"]
[White "Honcharov, Makar"]
[Black "Rendl, Luboš"]
[Result "1/2-1/2"]
[TimeControl "90m + 30s"]
[WhiteElo "1872"]
[BlackElo "1420"]

1. e4 {[%clk 01:30:49]} {[%emt 00:00:10]} c5 {[%clk 01:30:03]} {[%emt
00:00:58]} 2. Nf3 {[%clk 01:31:12]} {[%emt 00:00:06]} Nc6 {[%clk 01:29:51]}
{[%emt 00:00:42]} 3. d4 {[%clk 01:31:37]} {[%emt 00:00:05]} cxd4 {[%clk
01:30:17]} {[%emt 00:00:05]} 4. Nxd4 {[%clk 01:32:05]} {[%emt 00:00:02]} Nf6
{[%clk 01:30:08]} {[%emt 00:00:39]} 5. Nc3 {[%clk 01:32:30]} {[%emt 00:00:05]}
e5 {[%clk 01:30:04]} {[%emt 00:00:34]} 6. Ndb5 {[%clk 01:32:54]} {[%emt
00:00:05]} d6 {[%clk 01:30:29]} {[%emt 00:00:05]} 7. Bg5 {[%clk 01:32:45]}
{[%emt 00:00:08]} a6 {[%clk 01:30:53]} {[%emt 00:00:07]} 8. Na3 {[%clk
01:33:41]} {[%emt 00:00:05]} b5 {[%clk 01:31:13]} {[%emt 00:00:10]} 9. Nd5
{[%clk 01:34:08]} {[%emt 00:00:03]} Be7 {[%clk 01:31:32]} {[%emt 00:00:11]} 10.
Bxf6 {[%clk 01:34:33]} {[%emt 00:00:05]} Bxf6 {[%clk 01:31:55]} {[%emt
00:00:07]} 11. c4 {[%clk 01:35:00]} {[%emt 00:00:03]} O-O {[%clk 01:29:57]}
{[%emt 00:02:28]} 12. cxb5 {[%clk 01:34:30]} {[%emt 00:01:00]} Nd4 {[%clk
01:28:33]} {[%emt 00:01:54]} 13. b6 {[%clk 01:34:52]} {[%emt 00:00:07]} Bb7
{[%clk 01:24:37]} {[%emt 00:04:25]} 14. Bc4 {[%clk 01:34:43]} {[%emt 00:00:40]}
Rc8 {[%clk 01:22:46]} {[%emt 00:02:21]} 15. O-O {[%clk 01:33:06]} {[%emt
00:02:06]} Bxd5 {[%clk 01:16:44]} {[%emt 00:06:33]} 16. Bxd5 {[%clk 01:33:21]}
{[%emt 00:00:16]} Qxb6 {[%clk 01:16:12]} {[%emt 00:01:02]} 17. Nc4 {[%clk
01:33:44]} {[%emt 00:00:06]} Qb8 {[%clk 01:13:41]} {[%emt 00:02:44]} 18. Qa4
{[%clk 01:32:17]} {[%emt 00:02:14]} Rc5 {[%clk 01:06:46]} {[%emt 00:07:25]} 19.
Qxa6 {[%clk 01:27:05]} {[%emt 00:05:42]} Be7 {[%clk 01:05:38]} {[%emt
00:01:34]} 20. Nb6 {[%clk 01:24:10]} {[%emt 00:03:29]} Rc7 {[%clk 01:03:38]}
{[%emt 00:02:27]} 21. Nc4 {[%clk 01:21:40]} {[%emt 00:03:03]} Ra7 {[%clk
01:00:24]} {[%emt 00:03:37]} 22. Qb6 {[%clk 01:19:55]} {[%emt 00:02:22]} Qxb6
{[%clk 01:00:23]} {[%emt 00:00:32]} 23. Nxb6 {[%clk 01:18:49]} {[%emt
00:01:36]} Rb8 {[%clk 01:00:11]} {[%emt 00:00:41]} 24. Nc4 {[%clk 01:19:06]}
{[%emt 00:00:14]} Rb5 {[%clk 00:58:44]} {[%emt 00:01:54]} 25. a4 {[%clk
01:18:26]} {[%emt 00:01:12]} Rb4 {[%clk 00:56:22]} {[%emt 00:02:30]} 26. a5
{[%clk 01:18:16]} {[%emt 00:01:02]} g6 {[%clk 00:54:57]} {[%emt 00:01:55]} 27.
Kh1 {[%clk 01:15:44]} {[%emt 00:03:03]} Rb5 {[%clk 00:53:13]} {[%emt 00:02:09]}
28. Ra4 {[%clk 01:15:08]} {[%emt 00:01:10]} Ra6 {[%clk 00:50:08]} {[%emt
00:03:32]} 29. b4 {[%clk 01:14:04]} {[%emt 00:01:37]} Nc2 {[%clk 00:47:24]}
{[%emt 00:03:12]} 30. Rb1 {[%clk 01:14:24]} {[%emt 00:00:12]} Bd8 {[%clk
00:47:12]} {[%emt 00:00:42]} 31. Rb2 {[%clk 01:12:21]} {[%emt 00:02:34]} Ne1
{[%clk 00:45:44]} {[%emt 00:01:57]} 32. Na3 {[%clk 01:12:25]} {[%emt 00:00:26]}
Rb8 {[%clk 00:44:44]} {[%emt 00:01:25]} 33. Bc4 {[%clk 01:10:49]} {[%emt
00:02:11]} Rxa5 {[%clk 00:43:36]} {[%emt 00:01:38]} 34. bxa5 {[%clk 01:10:24]}
{[%emt 00:00:56]} Rxb2 {[%clk 00:43:30]} {[%emt 00:00:36]} 35. a6 {[%clk
01:10:29]} {[%emt 00:00:25]} Bb6 {[%clk 00:41:52]} {[%emt 00:02:07]} 36. a7
{[%clk 01:09:30]} {[%emt 00:01:29]} Bxa7 {[%clk 00:42:16]} {[%emt 00:00:07]} 37.
Rxa7 {[%clk 01:09:46]} {[%emt 00:00:14]} Nc2 {[%clk 00:39:59]} {[%emt
00:02:45]} 38. Bxf7+ {[%clk 01:09:01]} {[%emt 00:01:16]} Kf8 {[%clk 00:40:12]}
{[%emt 00:00:17]} 39. h3 {[%clk 01:09:16]} {[%emt 00:00:15]} Nxa3 {[%clk
00:40:26]} {[%emt 00:00:17]} 40. Bd5 {[%clk 01:09:25]} {[%emt 00:00:20]} Nb5
{[%clk 00:39:19]} {[%emt 00:01:35]} 41. Rf7+ {[%clk 01:02:40]} {[%emt
00:07:17]} Kg8 {[%clk 00:36:03]} {[%emt 00:03:45]} 42. Rb7+ {[%clk 01:02:46]}
{[%emt 00:00:24]} Kh8 {[%clk 00:36:18]} {[%emt 00:00:11]} 43. Kh2 {[%clk
01:02:51]} {[%emt 00:00:29]} Rb1 {[%clk 00:36:07]} {[%emt 00:00:43]} 44. Rd7
{[%clk 00:58:16]} {[%emt 00:05:03]} Rb2 {[%clk 00:34:28]} {[%emt 00:02:06]} 45.
Kg3 {[%clk 00:57:51]} {[%emt 00:00:59]} Rc2 {[%clk 00:32:40]} {[%emt 00:02:16]}
46. Rb7 {[%clk 00:57:14]} {[%emt 00:01:09]} Rc5 {[%clk 00:25:47]} {[%emt
00:07:18]} 47. Kg4 {[%clk 00:56:15]} {[%emt 00:01:35]} Nc7 {[%clk 00:24:51]}
{[%emt 00:01:25]} 48. Rb8+ {[%clk 00:53:12]} {[%emt 00:03:34]} Kg7 {[%clk
00:25:02]} {[%emt 00:00:18]} 49. Rg8+ {[%clk 00:50:33]} {[%emt 00:03:09]} Kf6
{[%clk 00:18:59]} {[%emt 00:06:31]} 50. Rf8+ {[%clk 00:50:26]} {[%emt
00:00:39]} Kg7 {[%clk 00:19:17]} {[%emt 00:00:12]} 51. Rf7+ {[%clk 00:45:04]}
{[%emt 00:05:52]} Kh6 {[%clk 00:19:19]} {[%emt 00:00:28]} 52. Bb7 {[%clk
00:42:36]} {[%emt 00:02:50]} 1/2-1/2

[Event "Mistrovství Čech mládeže 2023 - HD12"]
[Site "Harrachov, Czech Republic"]
[Date "2023.10.23"]
[Round "4.2"]
[White "Kubát, Jonáš"]
[Black "Zrůst, Lukáš"]
[Result "1/2-1/2"]
[TimeControl "90m + 30s"]
[WhiteElo "1423"]
[BlackElo "1685"]

1. e4 {[%clk 01:30:58]} {[%emt 00:00:01]} c5 {[%clk 01:30:49]} {[%emt
00:00:12]} 2. Nc3 {[%clk 01:31:20]} {[%emt 00:00:08]} Nc6 {[%clk 01:31:12]}
{[%emt 00:00:07]} 3. Nge2 {[%clk 01:31:43]} {[%emt 00:00:07]} g6 {[%clk
01:31:22]} {[%emt 00:00:20]} 4. g3 {[%clk 01:31:58]} {[%emt 00:00:15]} Bg7
{[%clk 01:31:44]} {[%emt 00:00:08]} 5. Bg2 {[%clk 01:32:13]} {[%emt 00:00:14]}
Nf6 {[%clk 01:31:55]} {[%emt 00:00:20]} 6. d3 {[%clk 01:32:18]} {[%emt
00:00:24]} O-O {[%clk 01:32:04]} {[%emt 00:00:22]} 7. O-O {[%clk 01:32:40]}
{[%emt 00:00:07]} d6 {[%clk 01:31:12]} {[%emt 00:01:23]} 8. f4 {[%clk
01:32:43]} {[%emt 00:00:26]} Qc7 {[%clk 01:31:04]} {[%emt 00:00:38]} 9. Be3
{[%clk 01:32:42]} {[%emt 00:00:32]} Ng4 {[%clk 01:30:35]} {[%emt 00:00:59]} 10.
Qd2 {[%clk 01:32:34]} {[%emt 00:00:37]} Nxe3 {[%clk 01:30:46]} {[%emt
00:00:21]} 11. Qxe3 {[%clk 01:32:49]} {[%emt 00:00:14]} Bd4 12. Nxd4 {[%clk
01:32:55]} cxd4 {[%clk 01:30:04]} {[%emt 00:01:28]} 13. Nd5 {[%clk 01:33:04]}
{[%emt 00:00:20]} Qd8 {[%clk 01:29:14]} {[%emt 00:01:21]} 14. Qd2 {[%clk
01:32:35]} {[%emt 00:00:59]} a5 {[%clk 01:27:10]} {[%emt 00:02:34]} 15. f5
{[%clk 01:32:26]} {[%emt 00:00:39]} Ne5 {[%clk 01:23:58]} {[%emt 00:03:41]} 16.
Qf2 {[%clk 01:27:30]} {[%emt 00:05:26]} Nc6 {[%clk 01:18:34]} {[%emt 00:05:55]}
17. a3 {[%clk 01:24:16]} {[%emt 00:03:44]} e6 {[%clk 01:10:30]} {[%emt
00:08:34]} 18. fxe6 {[%clk 01:24:05]} {[%emt 00:00:40]} fxe6 {[%clk 01:09:56]}
{[%emt 00:01:05]} 19. Qxf8+ {[%clk 01:24:13]} {[%emt 00:00:22]} Qxf8 {[%clk
01:10:06]} {[%emt 00:00:20]} 20. Rxf8+ {[%clk 01:24:28]} {[%emt 00:00:15]} Kxf8
{[%clk 01:10:26]} {[%emt 00:00:10]} 21. Rf1+ {[%clk 01:23:20]} {[%emt
00:01:37]} Kg7 {[%clk 01:10:28]} {[%emt 00:00:28]} 22. Nb6 {[%clk 01:22:55]}
{[%emt 00:00:56]} Rb8 {[%clk 01:10:19]} {[%emt 00:00:39]} 23. Bh3 {[%clk
01:21:23]} {[%emt 00:02:01]} Ne5 {[%clk 01:08:56]} {[%emt 00:01:54]} 24. Nxc8
{[%clk 01:20:33]} {[%emt 00:01:20]} Rxc8 {[%clk 01:09:19]} {[%emt 00:00:07]} 25.
Bxe6 {[%clk 01:20:52]} {[%emt 00:00:11]} Rxc2 {[%clk 01:09:38]} {[%emt
00:00:11]} 26. b3 {[%clk 01:18:32]} {[%emt 00:02:49]} Rd2 {[%clk 01:08:04]}
{[%emt 00:02:04]} 27. Bc4 {[%clk 01:17:30]} {[%emt 00:01:32]} Nxc4 {[%clk
01:07:44]} {[%emt 00:00:52]} 28. dxc4 {[%clk 01:17:47]} {[%emt 00:00:12]} d3
{[%clk 01:07:23]} {[%emt 00:00:51]} 29. Rf3 {[%clk 01:17:18]} {[%emt 00:00:57]}
h6 {[%clk 01:04:43]} {[%emt 00:03:11]} 30. h3 {[%clk 01:16:53]} {[%emt
00:00:54]} Ra2 {[%clk 01:04:44]} {[%emt 00:00:30]} 31. Rxd3 {[%clk 01:15:57]}
{[%emt 00:01:26]} Rxa3 {[%clk 01:04:54]} {[%emt 00:00:21]} 32. Rxd6 {[%clk
01:12:27]} {[%emt 00:04:00]} Rxb3 {[%clk 01:05:13]} {[%emt 00:00:11]} 33. Rd8
{[%clk 01:08:15]} {[%emt 00:04:41]} Rxg3+ {[%clk 01:04:31]} {[%emt 00:01:13]}
34. Kh2 {[%clk 01:06:48]} {[%emt 00:01:56]} Rc3 {[%clk 01:00:19]} {[%emt
00:04:42]} 35. Rd7+ {[%clk 01:01:43]} {[%emt 00:05:35]} Kf6 {[%clk 01:00:27]}
{[%emt 00:00:22]} 36. Rxb7 {[%clk 01:01:57]} {[%emt 00:00:16]} Rxc4 {[%clk
01:00:41]} {[%emt 00:00:16]} 37. Rb6+ {[%clk 00:59:37]} {[%emt 00:02:51]} Kf7
{[%clk 00:56:17]} {[%emt 00:04:54]} 38. Rb7+ {[%clk 00:57:59]} {[%emt
00:02:07]} Ke8 {[%clk 00:56:19]} {[%emt 00:00:28]} 39. Ra7 {[%clk 00:54:26]}
{[%emt 00:04:04]} a4 {[%clk 00:55:49]} {[%emt 00:01:00]} 40. e5 {[%clk
00:53:49]} {[%emt 00:01:06]} Rc2+ {[%clk 00:55:15]} {[%emt 00:01:03]} 41. Kg1
{[%clk 00:53:57]} {[%emt 00:00:23]} Ra2 {[%clk 00:55:10]} {[%emt 00:00:35]} 42.
e6 {[%clk 00:52:40]} {[%emt 00:01:47]} a3 {[%clk 00:55:05]} {[%emt 00:00:35]}
43. Kh1 {[%clk 00:50:09]} {[%emt 00:03:01]} Ra1+ {[%clk 00:55:19]} {[%emt
00:00:17]} 44. Kg2 {[%clk 00:50:10]} {[%emt 00:00:28]} a2 {[%clk 00:55:40]}
{[%emt 00:00:09]} 45. Kh2 {[%clk 00:49:57]} {[%emt 00:00:41]} g5 {[%clk
00:55:55]} {[%emt 00:00:17]} 46. Kg2 {[%clk 00:49:20]} {[%emt 00:01:06]} h5
{[%clk 00:56:05]} {[%emt 00:00:20]} 47. Kh2 {[%clk 00:49:21]} {[%emt 00:00:29]}
g4 {[%clk 00:56:27]} {[%emt 00:00:09]} 48. hxg4 {[%clk 00:48:15]} {[%emt
00:01:36]} hxg4 {[%clk 00:56:43]} {[%emt 00:00:15]} 49. e7 {[%clk 00:47:50]}
{[%emt 00:00:54]} g3+ {[%clk 00:56:55]} {[%emt 00:00:19]} 50. Kg2 {[%clk
00:48:11]} {[%emt 00:00:08]} Kf7 {[%clk 00:54:04]} {[%emt 00:03:21]} 51. e8=Q+
{[%clk 00:43:22]} {[%emt 00:05:19]} Kxe8 {[%clk 00:54:15]} {[%emt 00:00:19]} 52.
Ra8+ {[%clk 00:43:41]} {[%emt 00:00:11]} Kd7 {[%clk 00:54:20]} {[%emt
00:00:25]} 53. Ra7+ {[%clk 00:43:59]} {[%emt 00:00:12]} Kc6 {[%clk 00:54:40]}
{[%emt 00:00:10]} 54. Ra6+ {[%clk 00:44:13]} {[%emt 00:00:16]} Kc5 {[%clk
00:54:55]} {[%emt 00:00:15]} 55. Ra5+ {[%clk 00:43:41]} {[%emt 00:01:03]} Kc4
{[%clk 00:55:08]} {[%emt 00:00:17]} 56. Ra8 {[%clk 00:42:54]} {[%emt 00:01:16]}
Kd4 {[%clk 00:54:37]} {[%emt 00:01:01]} 57. Rd8+ {[%clk 00:43:05]} {[%emt
00:00:19]} Ke4 {[%clk 00:54:33]} {[%emt 00:00:34]} 58. Re8+ {[%clk 00:42:57]}
{[%emt 00:00:39]} Kd5 {[%clk 00:54:53]} {[%emt 00:00:09]} 59. Ra8 {[%clk
00:42:11]} {[%emt 00:01:16]} 1/2-1/2

[Event "Mistrovství Čech mládeže 2023 - HD12"]
[Site "Harrachov, Czech Republic"]
[Date "2023.10.23"]
[Round "4.3"]
[White "Artamonov, Mikhail"]
[Black "Remizov, Artem"]
[Result "1-0"]
[TimeControl "90m + 30s"]
[WhiteElo "1458"]
[BlackElo "1259"]

1. d4 {[%clk 01:30:57]} {[%emt 00:00:02]} d5 {[%clk 01:30:55]} {[%emt
00:00:06]} 2. c4 {[%clk 01:31:23]} {[%emt 00:00:03]} c6 {[%clk 01:30:39]}
{[%emt 00:00:47]} 3. Nc3 {[%clk 01:30:43]} {[%emt 00:01:10]} Nf6 {[%clk
01:30:34]} {[%emt 00:00:35]} 4. Bg5 {[%clk 01:29:25]} {[%emt 00:01:47]} Bf5
{[%clk 01:28:55]} {[%emt 00:02:10]} 5. e3 {[%clk 01:24:54]} {[%emt 00:05:00]}
Nbd7 {[%clk 01:28:46]} {[%emt 00:00:40]} 6. Nf3 {[%clk 01:17:49]} {[%emt
00:07:35]} h6 {[%clk 01:28:25]} {[%emt 00:00:51]} 7. Bf4 {[%clk 01:18:06]}
{[%emt 00:00:11]} g5 {[%clk 01:26:42]} {[%emt 00:02:14]} 8. Bg3 {[%clk
01:16:46]} {[%emt 00:01:50]} e6 {[%clk 01:23:30]} {[%emt 00:03:42]} 9. cxd5
{[%clk 01:14:10]} {[%emt 00:03:06]} cxd5 {[%clk 01:19:18]} {[%emt 00:04:42]} 10.
a3 {[%clk 01:08:27]} {[%emt 00:06:13]} Ne4 {[%clk 01:18:34]} {[%emt 00:01:14]}
11. Nxe4 {[%clk 01:04:41]} {[%emt 00:04:16]} Bxe4 {[%clk 01:15:43]} {[%emt
00:03:22]} 12. Ne5 {[%clk 01:02:41]} {[%emt 00:02:30]} Nxe5 {[%clk 01:14:56]}
{[%emt 00:01:17]} 13. Bxe5 {[%clk 01:02:14]} {[%emt 00:00:57]} f6 {[%clk
01:15:11]} {[%emt 00:00:14]} 14. Qa4+ {[%clk 00:59:58]} {[%emt 00:02:47]} Kf7
{[%clk 01:13:52]} {[%emt 00:01:48]} 15. Bg3 {[%clk 00:59:54]} {[%emt 00:00:34]}
Bd6 {[%emt 00:03:29]} 16. Bxd6 {[%clk 00:57:50]} {[%emt 00:02:31]} Qxd6 {[%clk
01:11:21]} {[%emt 00:00:05]} 17. f3 {[%clk 00:54:45]} {[%emt 00:03:35]} Bg6
{[%clk 01:10:25]} {[%emt 00:01:27]} 18. Qb3 {[%clk 00:52:06]} {[%emt 00:03:08]}
Qb6 {[%emt 00:01:34]} 19. Qxb6 {[%clk 00:51:32]} {[%emt 00:01:03]} axb6 {[%clk
01:09:47]} {[%emt 00:00:05]} 20. Kd2 {[%clk 00:51:04]} {[%emt 00:00:58]} Rac8
{[%clk 01:09:42]} {[%emt 00:00:36]} 21. Bd3 {[%clk 00:51:01]} {[%emt 00:00:32]}
Bxd3 {[%clk 01:09:50]} {[%emt 00:00:22]} 22. Kxd3 {[%clk 00:51:02]} {[%emt
00:00:30]} Rc6 {[%clk 01:09:58]} {[%emt 00:00:21]} 23. Rac1 {[%clk 00:50:44]}
{[%emt 00:00:48]} Rhc8 {[%clk 01:09:50]} {[%emt 00:00:38]} 24. Kd2 {[%clk
00:49:50]} {[%emt 00:01:24]} e5 {[%clk 01:08:33]} {[%emt 00:01:48]} 25. b4
{[%clk 00:46:56]} {[%emt 00:03:24]} exd4 {[%clk 01:07:51]} {[%emt 00:01:12]} 26.
exd4 {[%clk 00:46:45]} {[%emt 00:00:41]} Ke6 {[%clk 01:06:32]} {[%emt
00:01:48]} 27. Rxc6+ {[%clk 00:41:45]} {[%emt 00:05:31]} bxc6 {[%clk 01:06:47]}
{[%emt 00:00:15]} 28. Rc1 {[%clk 00:40:47]} {[%emt 00:01:27]} Kd6 {[%clk
01:04:18]} {[%emt 00:02:59]} 29. g4 {[%clk 00:40:03]} {[%emt 00:01:14]} Ra8
{[%clk 01:03:15]} {[%emt 00:01:34]} 30. Rc3 {[%clk 00:38:23]} {[%emt 00:02:10]}
b5 {[%clk 01:02:44]} {[%emt 00:01:00]} 31. Ke3 {[%clk 00:30:37]} {[%emt
00:08:16]} Ke6 {[%clk 01:02:43]} {[%emt 00:00:32]} 32. Rxc6+ {[%clk 00:30:57]}
{[%emt 00:00:10]} Ke7 {[%clk 01:00:43]} {[%emt 00:02:29]} 33. Rc3 {[%clk
00:30:36]} {[%emt 00:00:51]} Kf7 {[%clk 00:59:22]} {[%emt 00:01:52]} 34. Kd2
{[%clk 00:25:12]} {[%emt 00:05:54]} Kg6 {[%clk 00:59:24]} {[%emt 00:00:27]} 35.
Kc2 {[%clk 00:23:56]} {[%emt 00:01:47]} h5 {[%clk 00:58:39]} {[%emt 00:01:15]}
36. h3 {[%clk 00:23:42]} {[%emt 00:00:43]} hxg4 {[%clk 00:58:55]} {[%emt
00:00:15]} 37. hxg4 {[%clk 00:24:02]} {[%emt 00:00:10]} f5 {[%clk 00:59:04]}
{[%emt 00:00:21]} 38. Kb3 {[%clk 00:22:36]} {[%emt 00:01:55]} fxg4 {[%clk
00:59:14]} {[%emt 00:00:21]} 39. fxg4 {[%clk 00:22:58]} {[%emt 00:00:08]} Kf7
{[%clk 00:58:21]} {[%emt 00:01:22]} 40. Rc5 {[%clk 00:22:25]} {[%emt 00:01:03]}
Ke6 {[%clk 00:58:09]} {[%emt 00:00:43]} 41. Rxb5 {[%clk 00:20:22]} {[%emt
00:02:33]} Kd6 {[%clk 00:57:23]} {[%emt 00:01:16]} 42. Rb6+ {[%clk 00:19:50]}
{[%emt 00:01:01]} Ke7 {[%clk 00:57:27]} {[%emt 00:00:27]} 43. Rg6 {[%clk
00:20:08]} {[%emt 00:00:11]} Kf7 {[%clk 00:57:49]} {[%emt 00:00:08]} 44. Rxg5
{[%clk 00:20:19]} {[%emt 00:00:19]} Ke6 {[%clk 00:57:52]} {[%emt 00:00:27]} 45.
a4 {[%clk 00:19:43]} {[%emt 00:01:06]} Rd8 {[%clk 00:57:50]} {[%emt 00:00:33]}
46. Rf5 {[%clk 00:18:11]} {[%emt 00:02:02]} Rg8 {[%clk 00:57:11]} {[%emt
00:01:09]} 47. Rf4 {[%clk 00:18:14]} {[%emt 00:00:26]} Kd6 {[%clk 00:57:20]}
{[%emt 00:00:21]} 48. b5 {[%clk 00:17:54]} {[%emt 00:00:50]} Kc7 {[%clk
00:57:38]} {[%emt 00:00:13]} 49. Kb4 {[%clk 00:16:43]} {[%emt 00:01:41]} Kb6
{[%clk 00:57:48]} {[%emt 00:00:20]} 50. a5+ {[%clk 00:16:37]} {[%emt 00:00:35]}
Kb7 {[%clk 00:57:44]} {[%emt 00:00:34]} 51. b6 {[%clk 00:16:41]} {[%emt
00:00:26]} Ka8 {[%clk 00:57:40]} {[%emt 00:00:34]} 52. a6 {[%clk 00:16:44]}
{[%emt 00:00:27]} Kb8 {[%clk 00:57:58]} {[%emt 00:00:12]} 53. Kb5 {[%clk
00:16:44]} {[%emt 00:00:31]} Ka8 {[%clk 00:57:02]} {[%emt 00:01:25]} 54. a7
{[%clk 00:16:42]} {[%emt 00:00:32]} Kb7 {[%clk 00:57:23]} {[%emt 00:00:09]} 55.
Rf7+ {[%clk 00:17:03]} {[%emt 00:00:09]} Ka8 {[%clk 00:57:45]} {[%emt
00:00:09]} 56. Ka6 {[%clk 00:17:10]} {[%emt 00:00:22]} Rb8 {[%clk 00:57:45]}
{[%emt 00:00:29]} 57. axb8=R+ {[%clk 00:16:30]} {[%emt 00:01:11]} Kxb8 {[%clk
00:57:59]} {[%emt 00:00:17]} 58. Rf8# {[%clk 00:16:53]} {[%emt 00:00:06]} 1-0

[Event "Mistrovství Čech mládeže 2023 - HD12"]
[Site "Harrachov, Czech Republic"]
[Date "2023.10.23"]
[Round "4.4"]
[White "Zeman, Jonáš"]
[Black "Zika, Miroslav"]
[Result "0-1"]
[TimeControl "90m + 30s"]
[WhiteElo "1216"]
[BlackElo "1199"]

1. e4 {[%clk 01:30:58]} c5 {[%clk 01:30:53]} {[%emt 00:00:08]} 2. Nf3 {[%clk
01:31:17]} {[%emt 00:00:11]} Nc6 {[%clk 01:31:14]} {[%emt 00:00:09]} 3. d4
{[%clk 01:31:38]} {[%emt 00:00:08]} cxd4 {[%clk 01:31:39]} {[%emt 00:00:06]} 4.
Nxd4 {[%clk 01:32:01]} {[%emt 00:00:08]} e6 {[%clk 01:31:43]} {[%emt 00:00:25]}
5. Nc3 {[%clk 01:31:48]} {[%emt 00:00:43]} Nf6 {[%clk 01:32:07]} {[%emt
00:00:06]} 6. Bg5 {[%clk 01:31:42]} {[%emt 00:00:35]} Be7 {[%clk 01:32:16]}
{[%emt 00:00:21]} 7. f4 {[%clk 01:30:14]} {[%emt 00:01:58]} O-O {[%clk
01:32:06]} {[%emt 00:00:41]} 8. Qd2 {[%clk 01:29:33]} {[%emt 00:01:12]} b6
{[%clk 01:31:21]} {[%emt 00:01:14]} 9. O-O-O {[%clk 01:28:43]} {[%emt
00:01:20]} Bb7 {[%clk 01:31:36]} {[%emt 00:00:15]} 10. h4 {[%clk 01:26:34]}
{[%emt 00:02:39]} h6 {[%clk 01:30:07]} {[%emt 00:01:59]} 11. Bxf6 {[%clk
01:21:52]} {[%emt 00:05:12]} Bxf6 {[%clk 01:30:12]} {[%emt 00:00:25]} 12. e5
{[%clk 01:20:48]} {[%emt 00:01:34]} Bxh4 {[%clk 01:26:38]} {[%emt 00:04:03]} 13.
Rg1 {[%clk 01:19:15]} {[%emt 00:02:03]} Be7 {[%clk 01:25:43]} {[%emt 00:01:26]}
14. g4 {[%clk 01:17:42]} {[%emt 00:02:03]} Nxd4 {[%clk 01:24:02]} {[%emt
00:02:10]} 15. Qxd4 {[%clk 01:17:31]} {[%emt 00:00:41]} Bc5 {[%clk 01:24:15]}
{[%emt 00:00:17]} 16. Qxd7 {[%clk 01:16:42]} {[%emt 00:01:18]} Qxd7 {[%clk
01:23:38]} {[%emt 00:01:09]} 17. Rxd7 {[%clk 01:16:59]} {[%emt 00:00:13]} Bc8
{[%emt 00:07:16]} 0-1

[Event "Mistrovství Čech mládeže 2023 - HD12"]
[Site "Harrachov, Czech Republic"]
[Date "2023.10.23"]
[Round "4.5"]
[White "Janoušková, Eliška"]
[Black "Kroulík, Štěpán"]
[Result "1-0"]
[TimeControl "90m + 30s"]
[WhiteElo "1385"]
[BlackElo "1454"]

1. e4 {[%clk 01:30:56]} {[%emt 00:00:03]} c5 {[%clk 01:30:56]} {[%emt
00:00:06]} 2. d4 {[%clk 01:31:02]} {[%emt 00:00:23]} cxd4 {[%clk 01:31:20]}
{[%emt 00:00:07]} 3. c3 {[%clk 01:31:05]} {[%emt 00:00:26]} d3 {[%clk
01:31:46]} {[%emt 00:00:04]} 4. c4 {[%clk 01:31:03]} {[%emt 00:00:32]} Nc6
{[%clk 01:31:15]} {[%emt 00:01:01]} 5. Bxd3 {[%clk 01:30:24]} {[%emt 00:01:08]}
g6 {[%clk 01:30:59]} {[%emt 00:00:47]} 6. Nf3 {[%clk 01:29:05]} {[%emt
00:01:48]} Bg7 {[%clk 01:30:53]} {[%emt 00:00:37]} 7. O-O {[%clk 01:27:28]}
{[%emt 00:02:05]} d6 {[%clk 01:31:04]} {[%emt 00:00:20]} 8. h3 {[%clk
01:26:19]} {[%emt 00:01:39]} Bd7 {[%clk 01:31:25]} {[%emt 00:00:09]} 9. Nc3
{[%clk 01:25:30]} {[%emt 00:01:19]} Nf6 {[%clk 01:31:05]} {[%emt 00:00:51]} 10.
Be3 {[%clk 01:23:30]} {[%emt 00:02:29]} O-O {[%clk 01:31:16]} {[%emt 00:00:20]}
11. a3 {[%clk 01:18:09]} {[%emt 00:05:51]} a5 {[%clk 01:30:36]} {[%emt
00:01:09]} 12. Qd2 {[%clk 01:17:42]} {[%emt 00:00:58]} Rc8 {[%clk 01:28:34]}
{[%emt 00:02:32]} 13. Rac1 {[%clk 01:14:20]} {[%emt 00:03:52]} Re8 {[%clk
01:24:54]} {[%emt 00:04:10]} 14. Rfd1 {[%clk 01:11:16]} {[%emt 00:03:33]} Nb8
{[%clk 01:04:37]} {[%emt 00:20:48]} 15. Nd5 {[%clk 01:01:56]} {[%emt 00:09:51]}
Nxd5 {[%clk 01:04:13]} {[%emt 00:00:53]} 16. exd5 {[%clk 01:02:10]} {[%emt
00:00:15]} Na6 {[%clk 01:03:04]} {[%emt 00:01:40]} 17. b4 {[%clk 01:00:12]}
{[%emt 00:02:29]} axb4 {[%clk 01:02:27]} {[%emt 00:01:06]} 18. axb4 {[%clk
00:59:32]} {[%emt 00:01:09]} Rf8 {[%clk 00:53:57]} {[%emt 00:09:00]} 19. Be2
{[%clk 00:50:39]} {[%emt 00:09:23]} Ra8 {[%clk 00:43:45]} {[%emt 00:10:43]} 20.
c5 {[%clk 00:47:14]} {[%emt 00:03:56]} Nc7 {[%clk 00:41:03]} {[%emt 00:03:11]}
21. c6 {[%clk 00:43:34]} {[%emt 00:04:10]} bxc6 {[%clk 00:40:55]} {[%emt
00:00:38]} 22. dxc6 {[%clk 00:43:45]} {[%emt 00:00:18]} Bc8 {[%clk 00:39:22]}
{[%emt 00:02:03]} 23. b5 {[%clk 00:42:32]} {[%emt 00:01:44]} Ne6 {[%clk
00:37:29]} {[%emt 00:02:24]} 24. b6 {[%clk 00:37:22]} {[%emt 00:05:40]} Ba6
{[%clk 00:34:53]} {[%emt 00:03:06]} 25. Bxa6 {[%clk 00:34:40]} {[%emt
00:03:12]} Rxa6 {[%clk 00:35:06]} {[%emt 00:00:16]} 26. Qb4 {[%clk 00:33:26]}
{[%emt 00:01:43]} Qb8 {[%clk 00:34:04]} {[%emt 00:01:32]} 27. Qc4 {[%clk
00:27:35]} {[%emt 00:06:22]} Rxb6 {[%clk 00:32:01]} {[%emt 00:02:32]} 28. Bxb6
{[%clk 00:27:57]} {[%emt 00:00:08]} Qxb6 {[%clk 00:32:17]} {[%emt 00:00:15]} 29.
Rb1 {[%clk 00:26:08]} {[%emt 00:02:19]} Qc5 {[%clk 00:31:21]} {[%emt 00:01:25]}
30. Qxc5 {[%clk 00:23:35]} {[%emt 00:03:05]} Nxc5 {[%clk 00:31:35]} {[%emt
00:00:15]} 31. c7 {[%clk 00:23:23]} {[%emt 00:00:41]} Na6 {[%clk 00:30:36]}
{[%emt 00:01:28]} 32. Rdc1 {[%clk 00:22:51]} {[%emt 00:01:03]} Rc8 {[%clk
00:30:44]} {[%emt 00:00:22]} 33. Rb7 {[%clk 00:21:48]} {[%emt 00:01:34]} Kf8
{[%clk 00:29:34]} {[%emt 00:01:39]} 34. Rc6 {[%clk 00:21:18]} {[%emt 00:01:00]}
1-0